[Event "Titled Tuesday Blitz February 28 Early 2023"]
[White "Berkes, Ferenc"]
[Black "Milikow, Yoav"]
[WhiteFideId "718572"]
[BlackFideId "2822237"]
[WhiteElo "2664"]
[BlackElo "2410"]
[Result "0-1"]
[Round "05"]
[TimeControl "180+2"]
[Date "2023.02.28"]
[WhiteClock "0:00:02"]
[BlackClock "0:00:03"]

1. e4 {[%clk 0:03:00]}  e5 {[%clk 0:02:57]} 2. Nf3 {[%clk 0:02:59]}  Nf6 {[%clk 0:02:57]} 3. Nxe5 {[%clk 0:02:58]}  d6 {[%clk 0:02:57]} 4. Nf3 {[%clk 0:02:58]}  Nxe4 {[%clk 0:02:57]} 5. Nc3 {[%clk 0:02:58]}  Nxc3 {[%clk 0:02:56]} 6. dxc3 {[%clk 0:02:59]}  Be7 {[%clk 0:02:56]} 7. Be3 {[%clk 0:02:54]}  O-O {[%clk 0:02:56]} 8. Qd2 {[%clk 0:02:52]}  Nd7 {[%clk 0:02:56]} 9. O-O-O {[%clk 0:02:51]}  Nf6 {[%clk 0:02:48]} 10. Bd3 {[%clk 0:02:49]}  d5 {[%clk 0:02:44]} 11. h4 {[%clk 0:02:47]}  Re8 {[%clk 0:02:41]} 12. h5 {[%clk 0:02:45]}  c5 {[%clk 0:02:31]} 13. Kb1 {[%clk 0:02:33]}  Bg4 {[%clk 0:01:55]} 14. Rde1 {[%clk 0:02:26]}  c4 {[%clk 0:01:53]} 15. Be2 {[%clk 0:02:21]}  Ne4 {[%clk 0:01:52]} 16. Qd1 {[%clk 0:02:13]}  b5 {[%clk 0:01:41]} 17. Nd4 {[%clk 0:02:11]}  Bd7 {[%clk 0:01:37]} 18. f3 {[%clk 0:01:58]}  Ng3 {[%clk 0:01:31]} 19. Rhg1 {[%clk 0:01:56]}  a5 {[%clk 0:01:22]} 20. Bf2 {[%clk 0:01:54]}  Nxe2 {[%clk 0:01:13]} 21. Rxe2 {[%clk 0:01:48]}  Bf8 {[%clk 0:01:08]} 22. Rge1 {[%clk 0:01:45]}  Rxe2 {[%clk 0:01:08]} 23. Qxe2 {[%clk 0:01:43]}  b4 {[%clk 0:01:07]} 24. h6 {[%clk 0:01:37]}  bxc3 {[%clk 0:01:00]} 25. hxg7 {[%clk 0:01:34]}  Bxg7 {[%clk 0:01:01]} 26. bxc3 {[%clk 0:01:33]}  Qb6+ {[%clk 0:00:54]} 27. Kc1 {[%clk 0:01:33]}  Re8 {[%clk 0:00:42]} 28. Qxe8+ {[%clk 0:01:16]}  Bxe8 {[%clk 0:00:43]} 29. Rxe8+ {[%clk 0:01:16]}  Bf8 {[%clk 0:00:43]} 30. Be3 {[%clk 0:01:11]}  Qg6 {[%clk 0:00:33]} 31. g4 {[%clk 0:01:06]}  f5 {[%clk 0:00:26]} 32. Re6 {[%clk 0:00:54]}  Qf7 {[%clk 0:00:25]} 33. gxf5 {[%clk 0:00:54]}  Qh5 {[%clk 0:00:20]} 34. Rc6 {[%clk 0:00:46]}  Ba3+ {[%clk 0:00:17]} 35. Kd2 {[%clk 0:00:46]}  Qh2+ {[%clk 0:00:17]} 36. Ne2 {[%clk 0:00:47]}  Qe5 {[%clk 0:00:17]} 37. Nd4 {[%clk 0:00:43]}  Qh2+ {[%clk 0:00:14]} 38. Ne2 {[%clk 0:00:42]}  Kf7 {[%clk 0:00:05]} 39. Bf4 {[%clk 0:00:39]}  Qf2 {[%clk 0:00:05]} 40. Rc7+ {[%clk 0:00:38]}  Kf6 {[%clk 0:00:05]} 41. Rc6+ {[%clk 0:00:36]}  Kxf5 {[%clk 0:00:04]} 42. Be3 {[%clk 0:00:37]}  Qh2 {[%clk 0:00:04]} 43. Bd4 {[%clk 0:00:32]}  Bd6 {[%clk 0:00:04]} 44. Ke3 {[%clk 0:00:27]}  Ke6 {[%clk 0:00:04]} 45. Bc5 {[%clk 0:00:23]}  Qe5+ {[%clk 0:00:02]} 46. Kd2 {[%clk 0:00:17]}  Qg5+ {[%clk 0:00:03]} 47. f4 {[%clk 0:00:17]}  Qg2 {[%clk 0:00:03]} 48. Rxd6+ {[%clk 0:00:16]}  Kf5 {[%clk 0:00:04]} 49. Rd8 {[%clk 0:00:14]}  h5 {[%clk 0:00:04]} 50. Rf8+ {[%clk 0:00:13]}  Ke4 {[%clk 0:00:04]} 51. Re8+ {[%clk 0:00:12]}  Kf5 {[%clk 0:00:05]} 52. Re5+ {[%clk 0:00:13]}  Kf6 {[%clk 0:00:04]} 53. Rxh5 {[%clk 0:00:13]}  a4 {[%clk 0:00:03]} 54. Bd4+ {[%clk 0:00:12]}  Kf7 {[%clk 0:00:04]} 55. Rh7+ {[%clk 0:00:12]}  Ke8 {[%clk 0:00:04]} 56. Rg7 {[%clk 0:00:12]}  Qh1 {[%clk 0:00:04]} 57. f5 {[%clk 0:00:11]}  Kf8 {[%clk 0:00:04]} 58. f6 {[%clk 0:00:11]}  Ke8 {[%clk 0:00:03]} 59. f7+ {[%clk 0:00:10]}  Kf8 {[%clk 0:00:03]} 60. Rg3 {[%clk 0:00:08]}  Qh6+ {[%clk 0:00:03]} 61. Be3 {[%clk 0:00:07]}  Qd6 {[%clk 0:00:03]} 62. Rf3 {[%clk 0:00:07]}  a3 {[%clk 0:00:02]} 63. Nd4 {[%clk 0:00:07]}  Qf6 {[%clk 0:00:02]} 64. Rf5 {[%clk 0:00:06]}  Qd6 {[%clk 0:00:02]} 65. Ke2 {[%clk 0:00:04]}  Qh2+ {[%clk 0:00:02]} 66. Bf2 {[%clk 0:00:03]}  Qd6 {[%clk 0:00:03]} 67. Bg3 {[%clk 0:00:02]}  Qg6 {[%clk 0:00:03]} 0-1


[Site "https://www.chess.com"]

[Event "Titled Tuesday Blitz February 28 Early 2023"]
[White "Real_OceanStorm"]
[Black "Degenbaev, Aziz"]
[BlackFideId "13802640"]
[WhiteElo "2760"]
[BlackElo "2152"]
[Result "1-0"]
[Round "05"]
[TimeControl "180+2"]
[Date "2023.02.28"]
[WhiteClock "0:01:29"]
[BlackClock "0:00:56"]

1. Nf3 {[%clk 0:03:00]}  Nf6 {[%clk 0:02:59]} 2. d4 {[%clk 0:03:01]}  g6 {[%clk 0:02:58]} 3. c4 {[%clk 0:03:02]}  Bg7 {[%clk 0:02:58]} 4. Nc3 {[%clk 0:03:02]}  O-O {[%clk 0:02:59]} 5. e4 {[%clk 0:03:03]}  d6 {[%clk 0:03:00]} 6. Be2 {[%clk 0:03:00]}  e5 {[%clk 0:02:59]} 7. dxe5 {[%clk 0:03:01]}  dxe5 {[%clk 0:02:59]} 8. O-O {[%clk 0:02:57]}  Nc6 {[%clk 0:02:53]} 9. h3 {[%clk 0:02:57]}  h6 {[%clk 0:02:45]} 10. Be3 {[%clk 0:02:49]}  Be6 {[%clk 0:02:44]} 11. Qc1 {[%clk 0:02:49]}  Kh7 {[%clk 0:02:25]} 12. Rd1 {[%clk 0:02:46]}  Qc8 {[%clk 0:02:21]} 13. b4 {[%clk 0:02:09]}  Re8 {[%clk 0:01:54]} 14. b5 {[%clk 0:02:09]}  Na5 {[%clk 0:01:46]} 15. Nxe5 {[%clk 0:01:56]}  Nxe4 {[%clk 0:01:38]} 16. Nxe4 {[%clk 0:01:41]}  Bxe5 {[%clk 0:01:38]} 17. Bd4 {[%clk 0:01:32]}  Bf5 {[%clk 0:01:38]} 18. Bxe5 {[%clk 0:01:32]}  Rxe5 {[%clk 0:01:38]} 19. Nf6+ {[%clk 0:01:31]}  Kg7 {[%clk 0:01:35]} 20. Ng4 {[%clk 0:01:31]}  Rxe2 {[%clk 0:00:56]} 21. Qxh6+ {[%clk 0:01:29]} 1-0


[Site "https://www.chess.com"]

[Event "Titled Tuesday Blitz February 28 Early 2023"]
[White "Avazkhonov, Alikhon"]
[Black "Costachi, Mihnea"]
[WhiteFideId "14208504"]
[BlackFideId "1217518"]
[WhiteElo "1739"]
[BlackElo "2456"]
[Result "0-1"]
[Round "05"]
[TimeControl "180+2"]
[Date "2023.02.28"]
[WhiteClock "0:00:01"]
[BlackClock "0:01:06"]

1. d4 {[%clk 0:02:59]}  Nf6 {[%clk 0:02:58]} 2. c4 {[%clk 0:02:56]}  g6 {[%clk 0:02:58]} 3. Nc3 {[%clk 0:02:56]}  Bg7 {[%clk 0:02:58]} 4. e4 {[%clk 0:02:56]}  O-O {[%clk 0:02:59]} 5. f3 {[%clk 0:02:56]}  d6 {[%clk 0:03:00]} 6. Be3 {[%clk 0:02:57]}  c5 {[%clk 0:02:59]} 7. Nge2 {[%clk 0:02:55]}  Nc6 {[%clk 0:02:58]} 8. d5 {[%clk 0:02:56]}  Ne5 {[%clk 0:02:58]} 9. Ng3 {[%clk 0:02:56]}  e6 {[%clk 0:02:59]} 10. Be2 {[%clk 0:02:55]}  exd5 {[%clk 0:02:59]} 11. cxd5 {[%clk 0:02:56]}  b5 {[%clk 0:02:58]} 12. Nxb5 {[%clk 0:02:28]}  Rb8 {[%clk 0:02:55]} 13. Qd2 {[%clk 0:02:08]}  a6 {[%clk 0:02:47]} 14. Nc3 {[%clk 0:02:01]}  h5 {[%clk 0:02:47]} 15. O-O {[%clk 0:01:54]}  h4 {[%clk 0:02:47]} 16. Nh1 {[%clk 0:01:53]}  h3 {[%clk 0:02:48]} 17. g4 {[%clk 0:01:53]}  Qb6 {[%clk 0:02:44]} 18. b4 {[%clk 0:01:06]}  Nfd7 {[%clk 0:02:36]} 19. bxc5 {[%clk 0:00:55]}  Nxc5 {[%clk 0:02:35]} 20. Na4 {[%clk 0:00:43]}  Qc7 {[%clk 0:02:18]} 21. Nxc5 {[%clk 0:00:43]}  dxc5 {[%clk 0:02:19]} 22. Rac1 {[%clk 0:00:40]}  c4 {[%clk 0:02:14]} 23. Nf2 {[%clk 0:00:36]}  Rb2 {[%clk 0:02:13]} 24. Rc2 {[%clk 0:00:35]}  c3 {[%clk 0:02:07]} 25. Qc1 {[%clk 0:00:20]}  Rb4 {[%clk 0:01:47]} 26. f4 {[%clk 0:00:13]}  Nc4 {[%clk 0:01:36]} 27. e5 {[%clk 0:00:10]}  Nxe3 {[%clk 0:01:31]} 28. Qxe3 {[%clk 0:00:11]}  g5 {[%clk 0:01:31]} 29. Rxc3 {[%clk 0:00:10]}  gxf4 {[%clk 0:01:31]} 30. Rxc7 {[%clk 0:00:05]}  fxe3 {[%clk 0:01:32]} 31. Nd3 {[%clk 0:00:04]}  Rd4 {[%clk 0:01:27]} 32. d6 {[%clk 0:00:03]}  Bxg4 {[%clk 0:01:27]} 33. Bxg4 {[%clk 0:00:03]}  Rxg4+ {[%clk 0:01:28]} 34. Kh1 {[%clk 0:00:04]}  Rd4 {[%clk 0:01:23]} 35. Nc5 {[%clk 0:00:04]}  e2 {[%clk 0:01:21]} 36. Rg1 {[%clk 0:00:03]}  Rd1 {[%clk 0:01:18]} 37. Nd3 {[%clk 0:00:02]}  Rxd3 {[%clk 0:01:18]} 38. d7 {[%clk 0:00:02]}  Rd1 {[%clk 0:01:16]} 39. Rc1 {[%clk 0:00:02]}  Rxc1 {[%clk 0:01:08]} 40. Rxc1 {[%clk 0:00:01]}  Bxe5 {[%clk 0:01:09]} 41. Re1 {[%clk 0:00:01]}  Rd8 {[%clk 0:01:06]} 42. Rxe2 {[%clk 0:00:02]}  Rxd7 {[%clk 0:01:07]} 43. Re1 {[%clk 0:00:01]}  Rd2 {[%clk 0:01:06]} 0-1


[Site "https://www.chess.com"]

[Event "Titled Tuesday Blitz February 28 Early 2023"]
[White "Acor, Corey"]
[Black "Klose, Eli"]
[WhiteFideId "2024861"]
[BlackFideId "16242955"]
[WhiteElo "2341"]
[BlackElo "2616"]
[Result "1-0"]
[Round "05"]
[TimeControl "180+2"]
[Date "2023.02.28"]
[WhiteClock "0:00:14"]
[BlackClock "0:00:07"]

1. e4 {[%clk 0:02:55]}  e6 {[%clk 0:02:59]} 2. d3 {[%clk 0:02:54]}  c5 {[%clk 0:02:55]} 3. Nd2 {[%clk 0:02:55]}  Nc6 {[%clk 0:02:55]} 4. g3 {[%clk 0:02:52]}  g6 {[%clk 0:02:56]} 5. Bg2 {[%clk 0:02:52]}  Bg7 {[%clk 0:02:56]} 6. Ne2 {[%clk 0:02:51]}  Nge7 {[%clk 0:02:56]} 7. O-O {[%clk 0:02:49]}  O-O {[%clk 0:02:55]} 8. f4 {[%clk 0:02:47]}  d6 {[%clk 0:02:55]} 9. Nf3 {[%clk 0:02:43]}  Rb8 {[%clk 0:02:53]} 10. c3 {[%clk 0:02:42]}  f5 {[%clk 0:02:45]} 11. Be3 {[%clk 0:02:36]}  b6 {[%clk 0:02:42]} 12. h3 {[%clk 0:02:25]}  Qd7 {[%clk 0:02:33]} 13. Qd2 {[%clk 0:02:13]}  Bb7 {[%clk 0:02:30]} 14. Rad1 {[%clk 0:02:08]}  Rbd8 {[%clk 0:02:29]} 15. g4 {[%clk 0:02:01]}  d5 {[%clk 0:02:28]} 16. e5 {[%clk 0:01:53]}  d4 {[%clk 0:02:15]} 17. Bf2 {[%clk 0:01:52]}  h6 {[%clk 0:01:49]} 18. cxd4 {[%clk 0:01:43]}  cxd4 {[%clk 0:01:50]} 19. Rc1 {[%clk 0:01:35]}  Nd5 {[%clk 0:01:44]} 20. Nfxd4 {[%clk 0:01:28]}  Nxd4 {[%clk 0:01:44]} 21. Bxd4 {[%clk 0:01:28]}  Rc8 {[%clk 0:01:35]} 22. Rxc8 {[%clk 0:01:20]}  Rxc8 {[%clk 0:01:34]} 23. Rc1 {[%clk 0:01:17]}  Bf8 {[%clk 0:01:22]} 24. Rxc8 {[%clk 0:01:13]}  Qxc8 {[%clk 0:01:23]} 25. Bf2 {[%clk 0:01:03]}  Bb4 {[%clk 0:01:20]} 26. Qd1 {[%clk 0:01:01]}  Bc5 {[%clk 0:01:16]} 27. d4 {[%clk 0:00:48]}  Be7 {[%clk 0:01:14]} 28. gxf5 {[%clk 0:00:48]}  gxf5 {[%clk 0:01:14]} 29. Kh2 {[%clk 0:00:47]}  Kh7 {[%clk 0:01:03]} 30. Bf3 {[%clk 0:00:47]}  Qe8 {[%clk 0:00:25]} 31. Nc3 {[%clk 0:00:40]}  Qd7 {[%clk 0:00:17]} 32. Nxd5 {[%clk 0:00:28]}  Bxd5 {[%clk 0:00:18]} 33. Bxd5 {[%clk 0:00:22]}  Qxd5 {[%clk 0:00:19]} 34. Qh5 {[%clk 0:00:18]}  Kg7 {[%clk 0:00:17]} 35. Qe8 {[%clk 0:00:18]}  Bf8 {[%clk 0:00:15]} 36. Bh4 {[%clk 0:00:15]}  Qf3 {[%clk 0:00:13]} 37. Bf6+ {[%clk 0:00:14]}  Kg8 {[%clk 0:00:09]} 38. Qg6+ {[%clk 0:00:13]}  Bg7 {[%clk 0:00:07]} 39. Qxg7# {[%clk 0:00:14]} 1-0


[Site "https://www.chess.com"]

[Event "Titled Tuesday Blitz February 28 Early 2023"]
[White "Yuan, Qingyu"]
[Black "Sielecki, Christof"]
[WhiteFideId "8609772"]
[BlackFideId "4620437"]
[WhiteElo "2359"]
[BlackElo "2443"]
[Result "1-0"]
[Round "05"]
[TimeControl "180+2"]
[Date "2023.02.28"]
[WhiteClock "0:00:11"]
[BlackClock "0:00:16"]

1. e4 {[%clk 0:03:00]}  c5 {[%clk 0:02:59]} 2. Nf3 {[%clk 0:03:01]}  a6 {[%clk 0:02:59]} 3. c3 {[%clk 0:03:00]}  d5 {[%clk 0:02:59]} 4. exd5 {[%clk 0:03:00]}  Qxd5 {[%clk 0:03:00]} 5. d4 {[%clk 0:02:58]}  e6 {[%clk 0:03:00]} 6. Na3 {[%clk 0:02:53]}  Nf6 {[%clk 0:02:59]} 7. Nc4 {[%clk 0:02:52]}  Nbd7 {[%clk 0:02:59]} 8. a4 {[%clk 0:02:48]}  b6 {[%clk 0:02:58]} 9. Be2 {[%clk 0:02:46]}  Bb7 {[%clk 0:02:58]} 10. O-O {[%clk 0:02:47]}  cxd4 {[%clk 0:02:53]} 11. Qxd4 {[%clk 0:02:43]}  Qxd4 {[%clk 0:02:52]} 12. Nxd4 {[%clk 0:02:43]}  Rc8 {[%clk 0:02:44]} 13. Rd1 {[%clk 0:02:37]}  Nd5 {[%clk 0:02:25]} 14. Ne3 {[%clk 0:02:05]}  Nxe3 {[%clk 0:02:16]} 15. Bxe3 {[%clk 0:02:05]}  Be7 {[%clk 0:02:08]} 16. Nb3 {[%clk 0:01:47]}  Nc5 {[%clk 0:01:49]} 17. Nxc5 {[%clk 0:01:43]}  Bxc5 {[%clk 0:01:50]} 18. Bxc5 {[%clk 0:01:43]}  Rxc5 {[%clk 0:01:43]} 19. Rd6 {[%clk 0:01:38]}  Rc6 {[%clk 0:01:01]} 20. Rad1 {[%clk 0:01:03]}  O-O {[%clk 0:00:45]} 21. Rd7 {[%clk 0:01:01]}  Bc8 {[%clk 0:00:37]} 22. Ra7 {[%clk 0:00:58]}  a5 {[%clk 0:00:31]} 23. Bb5 {[%clk 0:00:50]}  Rc5 {[%clk 0:00:30]} 24. Rd6 {[%clk 0:00:47]}  Rd5 {[%clk 0:00:24]} 25. Rxd5 {[%clk 0:00:42]}  exd5 {[%clk 0:00:25]} 26. Kf1 {[%clk 0:00:38]}  Rd8 {[%clk 0:00:19]} 27. Ra8 {[%clk 0:00:28]}  Kf8 {[%clk 0:00:19]} 28. Rb8 {[%clk 0:00:28]}  Ke7 {[%clk 0:00:19]} 29. Rxb6 {[%clk 0:00:28]}  Rd6 {[%clk 0:00:19]} 30. Rb8 {[%clk 0:00:23]}  Bf5 {[%clk 0:00:19]} 31. Ke2 {[%clk 0:00:16]}  d4 {[%clk 0:00:20]} 32. f3 {[%clk 0:00:13]}  dxc3 {[%clk 0:00:18]} 33. bxc3 {[%clk 0:00:14]}  Kf6 {[%clk 0:00:17]} 34. Ra8 {[%clk 0:00:11]}  g5 {[%clk 0:00:16]} 35. Rxa5 {[%clk 0:00:11]}  Ke5 {[%clk 0:00:16]} 36. Bd3+ {[%clk 0:00:11]}  Kf4 {[%clk 0:00:16]} 37. Rxf5# {[%clk 0:00:11]} 1-0


[Site "https://www.chess.com"]

[Event "Titled Tuesday Blitz February 28 Early 2023"]
[White "polandchessplayer"]
[Black "Aldokhin, Ivan"]
[BlackFideId "24115720"]
[WhiteElo "2764"]
[BlackElo "2322"]
[Result "0-1"]
[Round "05"]
[TimeControl "180+2"]
[Date "2023.02.28"]
[WhiteClock "0:00:52"]
[BlackClock "0:01:09"]

1. d4 {[%clk 0:03:00]}  Nf6 {[%clk 0:02:56]} 2. c4 {[%clk 0:03:00]}  g6 {[%clk 0:02:57]} 3. Nc3 {[%clk 0:03:00]}  Bg7 {[%clk 0:02:58]} 4. e4 {[%clk 0:03:01]}  d6 {[%clk 0:02:58]} 5. h3 {[%clk 0:03:01]}  O-O {[%clk 0:02:59]} 6. Be3 {[%clk 0:03:02]}  Nc6 {[%clk 0:02:59]} 7. g4 {[%clk 0:02:59]}  Re8 {[%clk 0:02:54]} 8. g5 {[%clk 0:02:57]}  Nd7 {[%clk 0:02:53]} 9. h4 {[%clk 0:02:57]}  e5 {[%clk 0:02:48]} 10. d5 {[%clk 0:02:57]}  Nd4 {[%clk 0:02:49]} 11. Nf3 {[%clk 0:02:45]}  Nc5 {[%clk 0:02:26]} 12. Be2 {[%clk 0:02:44]}  Nxe2 {[%clk 0:02:25]} 13. Qxe2 {[%clk 0:02:36]}  Bg4 {[%clk 0:02:25]} 14. Bxc5 {[%clk 0:02:12]}  dxc5 {[%clk 0:02:25]} 15. Qe3 {[%clk 0:02:13]}  Rf8 {[%clk 0:01:42]} 16. Nh2 {[%clk 0:02:03]}  Bh5 {[%clk 0:01:42]} 17. Nf1 {[%clk 0:01:51]}  f5 {[%clk 0:01:37]} 18. exf5 {[%clk 0:01:41]}  gxf5 {[%clk 0:01:35]} 19. Qxc5 {[%clk 0:01:41]}  e4 {[%clk 0:01:26]} 20. Rg1 {[%clk 0:01:36]}  f4 {[%clk 0:01:13]} 21. Nxe4 {[%clk 0:00:52]}  Qe8 {[%clk 0:01:13]} 22. Nd2 {[%clk 0:00:52]}  Bf3 {[%clk 0:01:09]} 0-1


[Site "https://www.chess.com"]

[Event "Titled Tuesday Blitz February 28 Early 2023"]
[White "Karttunen, Mika"]
[Black "Fernandez Guillen, Ernesto J."]
[WhiteFideId "502081"]
[BlackFideId "3512428"]
[WhiteElo "2396"]
[BlackElo "2423"]
[Result "0-1"]
[Round "05"]
[TimeControl "180+2"]
[Date "2023.02.28"]
[WhiteClock "0:00:04"]
[BlackClock "0:01:23"]

1. e4 {[%clk 0:03:00]}  e5 {[%clk 0:02:58]} 2. Nf3 {[%clk 0:03:00]}  Nc6 {[%clk 0:02:58]} 3. Bb5 {[%clk 0:02:58]}  f5 {[%clk 0:02:56]} 4. d3 {[%clk 0:02:53]}  fxe4 {[%clk 0:02:55]} 5. dxe4 {[%clk 0:02:53]}  Nf6 {[%clk 0:02:55]} 6. O-O {[%clk 0:02:52]}  Bc5 {[%clk 0:02:53]} 7. Bc4 {[%clk 0:02:50]}  d6 {[%clk 0:02:51]} 8. a3 {[%clk 0:01:40]}  Bg4 {[%clk 0:02:49]} 9. h3 {[%clk 0:01:36]}  Bh5 {[%clk 0:02:49]} 10. c3 {[%clk 0:01:27]}  Qd7 {[%clk 0:02:41]} 11. b4 {[%clk 0:01:22]}  Bb6 {[%clk 0:02:40]} 12. Re1 {[%clk 0:01:16]}  Rf8 {[%clk 0:02:38]} 13. Be3 {[%clk 0:01:01]}  Bxe3 {[%clk 0:02:36]} 14. Rxe3 {[%clk 0:01:01]}  O-O-O {[%clk 0:02:34]} 15. Nbd2 {[%clk 0:01:01]}  Kb8 {[%clk 0:02:34]} 16. Qb3 {[%clk 0:00:45]}  h6 {[%clk 0:02:28]} 17. Nh4 {[%clk 0:00:35]}  g5 {[%clk 0:02:26]} 18. Be6 {[%clk 0:00:35]}  Qh7 {[%clk 0:02:25]} 19. Nf5 {[%clk 0:00:28]}  Bg6 {[%clk 0:02:24]} 20. g4 {[%clk 0:00:27]}  h5 {[%clk 0:02:24]} 21. Ng3 {[%clk 0:00:12]}  hxg4 {[%clk 0:02:23]} 22. hxg4 {[%clk 0:00:13]}  Rh8 {[%clk 0:02:22]} 23. Kf1 {[%clk 0:00:10]}  d5 {[%clk 0:01:46]} 24. exd5 {[%clk 0:00:09]}  Bd3+ {[%clk 0:01:38]} 25. Ke1 {[%clk 0:00:09]}  Ne7 {[%clk 0:01:36]} 26. c4 {[%clk 0:00:09]}  e4 {[%clk 0:01:36]} 27. Ndf1 {[%clk 0:00:06]}  Ng6 {[%clk 0:01:34]} 28. Kd2 {[%clk 0:00:06]}  Ne5 {[%clk 0:01:33]} 29. Bf5 {[%clk 0:00:06]}  Qf7 {[%clk 0:01:29]} 30. Rc1 {[%clk 0:00:05]}  Nexg4 {[%clk 0:01:27]} 31. Bxg4 {[%clk 0:00:06]}  Nxg4 {[%clk 0:01:28]} 32. Rxd3 {[%clk 0:00:06]}  Qxf2+ {[%clk 0:01:26]} 33. Ne2 {[%clk 0:00:04]}  exd3 {[%clk 0:01:26]} 34. Qxd3 {[%clk 0:00:04]}  Rhe8 {[%clk 0:01:24]} 35. Ng3 {[%clk 0:00:04]}  Ne5 {[%clk 0:01:23]} 36. Qd4 {[%clk 0:00:04]}  Nf3+ {[%clk 0:01:23]} 0-1


[Site "https://www.chess.com"]

[Event "Titled Tuesday Blitz February 28 Early 2023"]
[White "Mikhailovsky, Vladimir"]
[Black "benny_aizenberg"]
[WhiteFideId "34105414"]
[WhiteElo "2282"]
[BlackElo "2579"]
[Result "1-0"]
[Round "05"]
[TimeControl "180+2"]
[Date "2023.02.28"]
[WhiteClock "0:00:09"]
[BlackClock "0:00:03"]

1. d4 {[%clk 0:02:47]}  f5 {[%clk 0:02:58]} 2. Nc3 {[%clk 0:02:43]}  Nf6 {[%clk 0:02:56]} 3. Bg5 {[%clk 0:02:44]}  d5 {[%clk 0:02:56]} 4. Bxf6 {[%clk 0:02:42]}  exf6 {[%clk 0:02:57]} 5. e3 {[%clk 0:02:43]}  Be6 {[%clk 0:02:56]} 6. Bd3 {[%clk 0:02:44]}  Qd7 {[%clk 0:02:55]} 7. Qf3 {[%clk 0:02:45]}  Nc6 {[%clk 0:02:50]} 8. Nge2 {[%clk 0:02:45]}  O-O-O {[%clk 0:02:37]} 9. Nf4 {[%clk 0:02:45]}  Bf7 {[%clk 0:02:30]} 10. O-O-O {[%clk 0:02:21]}  Ne7 {[%clk 0:02:18]} 11. h4 {[%clk 0:02:14]}  Kb8 {[%clk 0:02:17]} 12. h5 {[%clk 0:02:13]}  Nc8 {[%clk 0:02:17]} 13. Nce2 {[%clk 0:02:05]}  c6 {[%clk 0:01:58]} 14. Qh3 {[%clk 0:01:57]}  Nd6 {[%clk 0:01:39]} 15. Ng3 {[%clk 0:01:41]}  Ne4 {[%clk 0:01:34]} 16. Rhf1 {[%clk 0:01:41]}  Bd6 {[%clk 0:00:56]} 17. Nxf5 {[%clk 0:01:08]}  g5 {[%clk 0:00:23]} 18. Nxd6 {[%clk 0:01:00]}  Qxd6 {[%clk 0:00:09]} 19. Ne2 {[%clk 0:00:56]}  Be6 {[%clk 0:00:08]} 20. g4 {[%clk 0:00:45]}  Qe7 {[%clk 0:00:05]} 21. f3 {[%clk 0:00:31]}  Nd6 {[%clk 0:00:06]} 22. Qg3 {[%clk 0:00:32]}  Ka8 {[%clk 0:00:05]} 23. Nc3 {[%clk 0:00:32]}  f5 {[%clk 0:00:03]} 24. gxf5 {[%clk 0:00:21]}  Bxf5 {[%clk 0:00:04]} 25. e4 {[%clk 0:00:19]}  dxe4 {[%clk 0:00:03]} 26. fxe4 {[%clk 0:00:20]}  Nxe4 {[%clk 0:00:02]} 27. Nxe4 {[%clk 0:00:19]}  Bxe4 {[%clk 0:00:02]} 28. Rfe1 {[%clk 0:00:20]}  Rxd4 {[%clk 0:00:02]} 29. Qe3 {[%clk 0:00:13]}  Rhd8 {[%clk 0:00:02]} 30. Bxe4 {[%clk 0:00:12]}  c5 {[%clk 0:00:02]} 31. Rxd4 {[%clk 0:00:10]}  cxd4 {[%clk 0:00:02]} 32. Qf3 {[%clk 0:00:10]}  Re8 {[%clk 0:00:03]} 33. Bxb7+ {[%clk 0:00:09]} 1-0


[Site "https://www.chess.com"]

[Event "Titled Tuesday Blitz February 28 Early 2023"]
[White "Golubka, Petro"]
[Black "Ingebretsen, Jens E"]
[WhiteFideId "14114224"]
[BlackFideId "1522965"]
[WhiteElo "2404"]
[BlackElo "2213"]
[Result "0-1"]
[Round "05"]
[TimeControl "180+2"]
[Date "2023.02.28"]
[WhiteClock "0:02:39"]
[BlackClock "0:01:08"]

1. e4 {[%clk 0:03:00]}  c5 {[%clk 0:03:00]} 2. b4 {[%clk 0:02:57]}  cxb4 {[%clk 0:02:59]} 3. a3 {[%clk 0:02:56]}  bxa3 {[%clk 0:02:58]} 4. Bxa3 {[%clk 0:02:57]}  d6 {[%clk 0:02:52]} 5. Nf3 {[%clk 0:02:57]}  Nf6 {[%clk 0:02:53]} 6. d3 {[%clk 0:02:57]}  Nc6 {[%clk 0:02:53]} 7. Nbd2 {[%clk 0:02:58]}  g6 {[%clk 0:02:53]} 8. Be2 {[%clk 0:02:58]}  Bg7 {[%clk 0:02:54]} 9. Bb2 {[%clk 0:02:59]}  O-O {[%clk 0:02:54]} 10. Rb1 {[%clk 0:02:59]}  a5 {[%clk 0:02:52]} 11. O-O {[%clk 0:02:59]}  a4 {[%clk 0:02:45]} 12. Ba3 {[%clk 0:02:59]}  Nd7 {[%clk 0:02:38]} 13. Nc4 {[%clk 0:02:58]}  Na5 {[%clk 0:02:34]} 14. Nfd2 {[%clk 0:02:56]}  Nxc4 {[%clk 0:02:30]} 15. Nxc4 {[%clk 0:02:56]}  Ne5 {[%clk 0:02:12]} 16. Nxe5 {[%clk 0:02:52]}  Bxe5 {[%clk 0:02:11]} 17. d4 {[%clk 0:02:52]}  Bg7 {[%clk 0:02:10]} 18. Qd3 {[%clk 0:02:51]}  Qa5 {[%clk 0:02:07]} 19. Rb5 {[%clk 0:02:50]}  Qa7 {[%clk 0:02:05]} 20. c3 {[%clk 0:02:49]}  b6 {[%clk 0:02:04]} 21. Rb2 {[%clk 0:02:44]}  Ba6 {[%clk 0:02:03]} 22. Qxa6 {[%clk 0:02:39]}  Qxa6 {[%clk 0:02:01]} 23. Bxa6 {[%clk 0:02:40]}  Rxa6 {[%clk 0:02:02]} 24. Rfb1 {[%clk 0:02:41]}  Rc8 {[%clk 0:01:52]} 25. Bb4 {[%clk 0:02:41]}  b5 {[%clk 0:01:44]} 26. Kf1 {[%clk 0:02:40]}  f5 {[%clk 0:01:39]} 27. exf5 {[%clk 0:02:40]}  gxf5 {[%clk 0:01:40]} 28. Ke2 {[%clk 0:02:41]}  Rc4 {[%clk 0:01:29]} 29. f4 {[%clk 0:02:38]}  e5 {[%clk 0:01:21]} 30. fxe5 {[%clk 0:02:37]}  dxe5 {[%clk 0:01:22]} 31. Bc5 {[%clk 0:02:37]}  exd4 {[%clk 0:01:19]} 32. cxd4 {[%clk 0:02:38]}  Rxc5 {[%clk 0:01:06]} 33. dxc5 {[%clk 0:02:38]}  Bxb2 {[%clk 0:01:07]} 34. Rxb2 {[%clk 0:02:39]}  a3 {[%clk 0:01:08]} 35. Ra2 {[%clk 0:02:39]} 0-1


[Site "https://www.chess.com"]